[Event "Championnat du monde jeunes U10"]
[Date "2024.11.15"]
[White "Chkhartishvili, Lazare"]
[Black "Bulat, Mansur"]
[WhiteElo "1836"]
[BlackElo "1610"]
[Round "1.35"]
[Result "1/2-1/2"]
[TimeControl "5400+30"]

1. e4 {[%clk 1:30:59]} 1... c5 {[%clk 1:30:45]} 2. Nf3 d6 {[%clk 1:30:42]} 3.
Bb5+ {[%clk 1:30:53]} 3... Bd7 {[%clk 1:29:43]} 4. Bxd7+ {[%clk 1:31:11]} 4...
Qxd7 {[%clk 1:29:41]} 5. c4 {[%clk 1:31:24]} 5... Nc6 {[%clk 1:28:48]} 6. Nc3
{[%clk 1:26:56]} 6... e6 {[%clk 1:22:53]} 7. O-O {[%clk 1:26:39]} 7... Be7
{[%clk 1:19:29]} 8. d4 {[%clk 1:22:52]} 8... cxd4 {[%clk 1:14:51]} 9. Nxd4
{[%clk 1:23:10]} 9... Nxd4 {[%clk 1:13:52]} 10. Qxd4 {[%clk 1:23:28]} 10... Nf6
{[%clk 1:13:04]} 11. Rd1 {[%clk 1:23:07]} 11... O-O {[%clk 1:08:17]} 12. e5
{[%clk 1:21:24]} 12... Ne8 {[%clk 1:05:44]} 13. Bf4 {[%clk 1:21:23]} 13... Rc8
14. Nb5 {[%clk 1:08:04]} 14... b6 {[%clk 0:45:32]} 15. Qd3 {[%clk 0:53:29]}
15... h6 {[%clk 0:37:44]} 16. Rac1 {[%clk 0:45:13]} 16... a6 {[%clk 0:34:35]}
17. Nc3 {[%clk 0:32:17]} 17... Rd8 {[%clk 0:29:51]} 18. exd6 {[%clk 0:27:57]}
18... Bxd6 {[%clk 0:27:45]} 19. Bxd6 {[%clk 0:17:35]} 19... Qxd6 {[%clk
0:28:00]} 20. Qe3 {[%clk 0:15:42]} 20... Qc7 {[%clk 0:25:52]} 21. Rxd8 {[%clk
0:15:31]} 21... Qxd8 {[%clk 0:26:16]} 22. Ne4 {[%clk 0:15:28]} 22... Qc7 {[%clk
0:23:57]} 23. Qd4 {[%clk 0:14:03]} 23... Qf4 {[%clk 0:22:33]} 24. Rd1 {[%clk
0:12:42]} 24... e5 {[%clk 0:20:20]} 25. Qd5 {[%clk 0:11:07]} 25... Nc7 {[%clk
0:16:51]} 26. Qb7 {[%clk 0:10:24]} 26... Ne6 {[%clk 0:15:30]} 27. Nd6 {[%clk
0:10:01]} 27... Nd4 {[%clk 0:09:42]} 28. Qxb6 {[%clk 0:07:14]} 28... Qg4 {[%clk
0:09:31]} 29. Rf1 {[%clk 0:07:20]} 29... Ne2+ {[%clk 0:08:58]} 30. Kh1 {[%clk
0:07:42]} 30... Nf4 {[%clk 0:08:49]} 31. Qb7 {[%clk 0:07:39]} 31... Qe2 {[%clk
0:08:32]} 32. Kg1 {[%clk 0:07:09]} 32... Qd3 {[%clk 0:08:52]} 33. c5 {[%clk
0:03:58]} 33... Ne2+ {[%clk 0:07:58]} 34. Kh1 {[%clk 0:04:27]} 34... Ng3+ {[%clk
0:08:17]} 35. hxg3 {[%clk 0:04:56]} 35... Qxf1+ {[%clk 0:08:41]} 36. Kh2 {[%clk
0:05:21]} 36... Qxf2 {[%clk 0:08:33]} 37. c6 {[%clk 0:05:17]} 37... Qf6 {[%clk
0:08:45]} 38. c7 {[%clk 0:04:29]} 38... Qxd6 {[%clk 0:08:51]} 39. c8=Q {[%clk
0:04:52]} 39... Rxc8 {[%clk 0:09:17]} 40. Qxc8+ {[%clk 0:05:18]} 40... Kh7
{[%clk 0:09:37]} 41. Qf5+ {[%clk 0:05:37]} 41... g6 {[%clk 0:08:37]} 42. Qxf7+
{[%clk 0:05:47]} 42... Kh8 {[%clk 0:09:01]} 43. Kh3 {[%clk 0:05:41]} 43... e4
{[%clk 0:08:29]} 44. Qe8+ {[%clk 0:05:44]} 44... Kg7 {[%clk 0:08:52]} 45. Qxe4
{[%clk 0:06:08]} 45... h5 {[%clk 0:09:15]} 46. Qf4 {[%clk 0:05:32]} 46... Qe6+
{[%clk 0:09:28]} 47. Kh4 {[%clk 0:04:48]} 47... Qxa2 {[%clk 0:09:48]} 48. Qe5+
{[%clk 0:05:08]} 48... Kh7 {[%clk 0:06:20]} 49. Qe7+ {[%clk 0:03:41]} 49... Kh6
{[%clk 0:06:31]} 50. Qf8+ {[%clk 0:03:35]} 50... Kh7 {[%clk 0:06:53]} 51. Qe7+
{[%clk 0:03:54]} 51... Kh6 {[%clk 0:07:16]} 52. Qf8+ {[%clk 0:03:56]} 52... Kh7
{[%clk 0:07:41]} 53. Qe7+ Kh6 1/2-1/2

[Variant "Standard"]
[Site "Europe Echecs"]

[Event "Championnat du monde jeunes U10"]
[Date "2024.11.15"]
[White "Czech, Emil"]
[Black "Nguyen Truong An Khang"]
[WhiteElo "1608"]
[BlackElo "1836"]
[Round "1.36"]
[Result "0-1"]
[TimeControl "5400+30"]

1. e4 c6 {[%clk 1:30:56]} 2. d4 {[%clk 1:31:17]} 2... d5 {[%clk 1:31:18]} 3.
exd5 cxd5 {[%clk 1:31:42]} 4. Bd3 {[%clk 1:31:57]} 4... Nc6 {[%clk 1:32:05]} 5.
c3 {[%clk 1:32:14]} 5... Nf6 {[%clk 1:32:29]} 6. h3 {[%clk 1:32:35]} 6... e5
{[%clk 1:32:55]} 7. dxe5 {[%clk 1:32:56]} 7... Nxe5 {[%clk 1:33:22]} 8. Nf3
{[%clk 1:32:55]} 8... Nxd3+ {[%clk 1:33:44]} 9. Qxd3 {[%clk 1:33:22]} 9... Bd6
{[%clk 1:33:57]} 10. O-O {[%clk 1:33:21]} 10... O-O {[%clk 1:34:19]} 11. Nd4
{[%clk 1:24:12]} 11... Re8 {[%clk 1:25:39]} 12. Nd2 {[%clk 1:20:41]} 12... Bd7
{[%clk 1:21:02]} 13. N2f3 {[%clk 1:17:17]} 13... Ne4 {[%clk 1:11:29]} 14. Re1
{[%clk 1:08:32]} 14... a6 {[%clk 1:07:53]} 15. Be3 {[%clk 1:05:48]} 15... Qf6
{[%clk 1:04:56]} 16. Ne2 {[%clk 0:37:44]} 16... Rad8 {[%clk 0:46:41]} 17. h4
{[%clk 0:16:00]} 17... Bg4 {[%clk 0:34:05]} 18. Bg5 {[%clk 0:12:29]} 18... Nxg5
{[%clk 0:33:46]} 19. hxg5 {[%clk 0:12:40]} 19... Qg6 {[%clk 0:25:28]} 20. Qxg6
{[%clk 0:12:58]} 20... hxg6 {[%clk 0:25:29]} 21. Ned4 {[%clk 0:11:54]} 21... Kf8
{[%clk 0:22:00]} 22. Kf1 {[%clk 0:11:37]} 22... Bf4 {[%clk 0:20:23]} 23. g3
{[%clk 0:11:10]} 23... Bd6 {[%clk 0:19:38]} 24. Kg2 {[%clk 0:10:36]} 24... f6
{[%clk 0:17:07]} 25. Rh1 {[%clk 0:09:15]} 25... Kg8 {[%clk 0:14:13]} 26. Rae1
{[%clk 0:07:30]} 26... Rxe1 {[%clk 0:13:50]} 27. Rxe1 {[%clk 0:07:47]} 27... Kf7
{[%clk 0:14:17]} 28. Rh1 {[%clk 0:06:07]} 28... Bf8 {[%clk 0:11:59]} 29. gxf6
{[%clk 0:05:04]} 29... gxf6 {[%clk 0:12:18]} 30. Rh4 {[%clk 0:04:39]} 30... Bd7
{[%clk 0:12:21]} 31. a4 {[%clk 0:02:07]} 31... Kg7 {[%clk 0:11:08]} 32. a5
{[%clk 0:01:58]} 32... Bd6 {[%clk 0:11:24]} 33. Nb3 {[%clk 0:01:38]} 33... Re8
{[%clk 0:10:53]} 34. Rd4 {[%clk 0:01:53]} 34... Be6 {[%clk 0:11:04]} 35. Nbd2
{[%clk 0:01:42]} 35... Bc5 {[%clk 0:07:49]} 36. Rd3 {[%clk 0:01:24]} 36... g5
{[%clk 0:08:00]} 37. Nd4 {[%clk 0:01:23]} 37... Bf7 {[%clk 0:07:59]} 38. N2b3
{[%clk 0:01:29]} 38... Ba7 {[%clk 0:03:52]} 39. Nf5+ {[%clk 0:01:30]} 39... Kf8
{[%clk 0:04:12]} 40. Nd6 {[%clk 0:01:38]} 40... Re2 {[%clk 0:04:09]} 41. Rd2
{[%clk 0:01:00]} 41... Rxd2 {[%clk 0:02:58]} 42. Nxd2 {[%clk 0:01:27]} 42... b5
{[%clk 0:03:12]} 43. b4 {[%clk 0:00:58]} 43... d4 {[%clk 0:02:02]} 44. c4 {[%clk
0:01:10]} 44... bxc4 {[%clk 0:02:12]} 45. N6xc4 {[%clk 0:01:27]} 45... Bd5+
{[%clk 0:02:16]} 46. Kf1 {[%clk 0:01:39]} 46... Ke7 {[%clk 0:01:59]} 47. Ke2
{[%clk 0:01:38]} 47... d3+ {[%clk 0:01:10]} 48. Ke1 {[%clk 0:01:57]} 48... Bd4
{[%clk 0:01:28]} 49. Ne3 {[%clk 0:01:21]} 49... Ke6 {[%clk 0:01:06]} 50. Nxd5
{[%clk 0:00:53]} 50... Kxd5 {[%clk 0:01:35]} 51. f4 {[%clk 0:00:48]} 51... g4
{[%clk 0:01:55]} 52. Kd1 {[%clk 0:00:46]} 52... f5 {[%clk 0:01:26]} 53. Nb3
{[%clk 0:00:51]} 53... Bc3 {[%clk 0:01:44]} 54. b5 axb5 {[%clk 0:01:52]} 55. a6
{[%clk 0:01:35]} 55... Kc6 {[%clk 0:02:21]} 56. a7 {[%clk 0:01:59]} 56... Kb7
{[%clk 0:02:34]} 57. Nc5+ {[%clk 0:02:24]} 57... Kxa7 {[%clk 0:03:00]} 58. Nxd3
{[%clk 0:02:48]} 58... Kb6 {[%clk 0:03:16]} 59. Kc2 {[%clk 0:02:53]} 59... Bd4
{[%clk 0:03:32]} 60. Kd2 {[%clk 0:01:23]} 60... Kc6 {[%clk 0:03:49]} 61. Ke2
{[%clk 0:00:49]} 61... Kd5 {[%clk 0:04:07]} 62. Nb4+ {[%clk 0:01:03]} 62... Kc4
{[%clk 0:04:33]} 63. Nc6 {[%clk 0:01:23]} 63... b4 {[%clk 0:04:59]} 64. Nxb4
{[%clk 0:01:38]} 64... Kxb4 {[%clk 0:05:23]} 65. Kf1 {[%clk 0:01:56]} 65... Kc3
{[%clk 0:05:50]} 66. Ke2 {[%clk 0:02:18]} 66... Kc2 {[%clk 0:06:16]} 67. Kf1
{[%clk 0:02:43]} 67... Kd2 {[%clk 0:06:43]} 68. Kg2 {[%clk 0:03:00]} 68... Ke2
{[%clk 0:07:06]} 69. Kh2 {[%clk 0:03:19]} 69... Kf2 {[%clk 0:07:33]} 70. Kh1
{[%clk 0:03:40]} 70... Be3 {[%clk 0:07:56]} 71. Kh2 {[%clk 0:04:03]} 71... Bxf4
{[%clk 0:08:20]} 0-1

[Variant "Standard"]
[Site "Europe Echecs"]

[Event "Championnat du monde jeunes U10"]
[Date "2024.11.15"]
[White "Akramov, Khasan"]
[Black "Hung, I-Hsuan"]
[WhiteElo "1835"]
[BlackElo "1608"]
[Round "1.37"]
[Result "1-0"]
[TimeControl "5400+30"]

1. c4 {[%clk 1:30:57]} 1... Nf6 {[%clk 1:30:49]} 2. g3 {[%clk 1:31:21]} 2... e5
{[%clk 1:30:30]} 3. Bg2 {[%clk 1:31:43]} 3... Nc6 {[%clk 1:30:40]} 4. Nc3 {[%clk
1:31:50]} 4... Bc5 {[%clk 1:30:29]} 5. a3 {[%clk 1:31:41]} 5... a5 {[%clk
1:30:39]} 6. e3 {[%clk 1:32:05]} 6... O-O {[%clk 1:30:52]} 7. Nge2 {[%clk
1:32:28]} 7... d6 {[%clk 1:30:52]} 8. O-O {[%clk 1:32:38]} 8... Be6 {[%clk
1:30:29]} 9. d4 {[%clk 1:32:52]} 9... exd4 {[%clk 1:29:09]} 10. exd4 {[%clk
1:33:18]} 10... Bxa3 {[%clk 1:24:40]} 11. d5 {[%clk 1:32:27]} 11... Bc5 {[%clk
1:24:28]} 12. dxe6 {[%clk 1:32:41]} 12... fxe6 {[%clk 1:24:45]} 13. Nf4 {[%clk
1:32:56]} 13... Re8 {[%clk 1:24:53]} 14. Re1 {[%clk 1:32:44]} 14... e5 {[%clk
1:25:09]} 15. Nfd5 {[%clk 1:33:06]} 15... Rf8 {[%clk 1:25:12]} 16. Rf1 {[%clk
1:32:10]} 16... Qd7 {[%clk 1:24:32]} 17. Nxf6+ {[%clk 1:31:18]} 17... Rxf6
{[%clk 1:24:40]} 18. Ne4 {[%clk 1:31:41]} 18... Qf7 {[%clk 1:21:22]} 19. Nxc5
dxc5 {[%clk 1:21:31]} 20. Bd5 {[%clk 1:32:19]} 20... Re6 {[%clk 1:21:38]} 21.
Bxe6 {[%clk 1:32:45]} 21... Qxe6 {[%clk 1:22:02]} 22. Qd5 {[%clk 1:33:13]} 22...
Qxd5 {[%clk 1:19:25]} 23. cxd5 {[%clk 1:33:39]} 23... Nd4 {[%clk 1:19:41]} 24.
Be3 {[%clk 1:33:54]} 24... b6 {[%clk 1:19:55]} 25. Bxd4 {[%clk 1:34:17]} 25...
exd4 {[%clk 1:20:01]} 26. Rfe1 {[%clk 1:34:20]} 26... Rd8 {[%clk 1:19:56]} 27.
Re7 {[%clk 1:33:25]} 27... Rxd5 {[%clk 1:20:07]} 28. Rxc7 {[%clk 1:33:51]} 28...
d3 {[%clk 1:20:19]} 29. Kf1 {[%clk 1:33:24]} 29... Rd4 {[%clk 1:20:35]} 30. Ke1
{[%clk 1:30:08]} 30... Re4+ {[%clk 1:20:36]} 31. Kd2 {[%clk 1:30:33]} 31... Re2+
{[%clk 1:20:37]} 32. Kxd3 {[%clk 1:30:59]} 32... Rxb2 {[%clk 1:20:59]} 33. Re1
{[%clk 1:31:24]} 33... Kf8 {[%clk 1:20:06]} 34. Re2 {[%clk 1:31:04]} 34... Rb4
{[%clk 1:17:07]} 35. Ree7 {[%clk 1:31:24]} 35... Rd4+ {[%clk 1:16:27]} 36. Kc3
{[%clk 1:31:48]} 36... b5 {[%clk 1:16:09]} 37. Rf7+ {[%clk 1:32:13]} 37... Ke8
{[%clk 1:16:13]} 38. Rxg7 {[%clk 1:32:38]} 38... Kf8 {[%clk 1:16:22]} 39. Rxh7
{[%clk 1:33:02]} 39... Kg8 {[%clk 1:16:22]} 40. Rxc5 {[%clk 1:33:06]} 40... Ra4
{[%clk 1:15:21]} 41. Ra7 {[%clk 1:33:25]} 41... Rc4+ {[%clk 1:15:22]} 42. Rxc4
{[%clk 1:33:50]} 42... bxc4 {[%clk 1:15:42]} 43. Kxc4 {[%clk 1:34:18]} 43... a4
{[%clk 1:16:00]} 44. Rxa4 {[%clk 1:34:42]} 44... Kg7 {[%clk 1:16:13]} 45. Ra6
{[%clk 1:35:04]} 45... Kf7 {[%clk 1:16:32]} 46. h4 {[%clk 1:35:26]} 46... Kg7
{[%clk 1:16:54]} 47. g4 {[%clk 1:35:52]} 47... Kf7 {[%clk 1:17:18]} 48. g5
{[%clk 1:36:18]} 48... Kg7 {[%clk 1:17:44]} 49. h5 {[%clk 1:36:44]} 49... Kg8
{[%clk 1:18:06]} 50. Ra7 {[%clk 1:37:10]} 50... Kh8 {[%clk 1:18:30]} 51. h6
{[%clk 1:37:36]} 51... Kg8 {[%clk 1:18:46]} 52. g6 {[%clk 1:38:03]} 52... Kf8
{[%clk 1:19:07]} 53. h7 {[%clk 1:38:27]} 53... Ke8 {[%clk 1:19:24]} 54. h8=B
{[%clk 1:38:52]} 54... Kf8 {[%clk 1:19:46]} 55. Ra8+ {[%clk 1:39:18]} 55... Ke7
{[%clk 1:20:08]} 56. g7 {[%clk 1:39:44]} 56... Kf7 {[%clk 1:20:29]} 57. g8=B+
{[%clk 1:40:10]} 57... Ke7 {[%clk 1:20:48]} 58. Be5 {[%clk 1:40:37]} 58... Kd7
{[%clk 1:21:11]} 59. Bd5 {[%clk 1:41:00]} 59... Ke7 {[%clk 1:21:32]} 60. Ra7+
1-0

[Variant "Standard"]
[Site "Europe Echecs"]

[Event "Championnat du monde jeunes U10"]
[Date "2024.11.15"]
[White "Munoz Padilla, Andres"]
[Black "Garcia Tanjala, Marko"]
[WhiteElo "1604"]
[BlackElo "1833"]
[Round "1.38"]
[Result "0-1"]
[TimeControl "5400+30"]

1. e4 {[%clk 1:30:55]} 1... e5 {[%clk 1:30:54]} 2. Nf3 {[%clk 1:31:17]} 2... Nc6
{[%clk 1:31:13]} 3. d4 {[%clk 1:31:39]} 3... exd4 {[%clk 1:31:34]} 4. Nxd4
{[%clk 1:32:01]} 4... Nf6 {[%clk 1:31:52]} 5. Nxc6 {[%clk 1:32:21]} 5... bxc6
{[%clk 1:32:07]} 6. Qe2 {[%clk 1:32:34]} 6... Qe7 {[%clk 1:31:15]} 7. Nc3 {[%clk
1:32:41]} 7... d5 {[%clk 1:29:54]} 8. exd5 {[%clk 1:32:57]} 8... cxd5 {[%clk
1:30:13]} 9. Be3 {[%clk 1:27:08]} 9... c6 {[%clk 1:29:53]} 10. O-O-O {[%clk
1:16:46]} 10... Qe6 {[%clk 1:29:02]} 11. Re1 {[%clk 1:15:56]} 11... Bb4 {[%clk
1:29:13]} 12. Qd3 {[%clk 1:15:16]} 12... O-O {[%clk 1:29:21]} 13. Rg1 {[%clk
1:13:27]} 13... Qf5 {[%clk 1:29:27]} 14. g4 {[%clk 1:07:45]} 14... Qxd3 {[%clk
1:28:54]} 15. Bxd3 {[%clk 1:08:07]} 15... Nxg4 {[%clk 1:29:09]} 16. a3 {[%clk
1:05:54]} 16... Bxc3 {[%clk 1:29:17]} 17. bxc3 {[%clk 1:06:17]} 17... Nxe3
{[%clk 1:29:39]} 18. Rxe3 {[%clk 1:06:26]} 18... Be6 {[%clk 1:29:39]} 19. f4
{[%clk 1:06:27]} 19... Rae8 {[%clk 1:24:05]} 20. f5 {[%clk 1:06:45]} 20... Bd7
{[%clk 1:24:26]} 21. Reg3 {[%clk 1:07:06]} 21... g6 {[%clk 1:24:50]} 22. fxg6
{[%clk 1:07:25]} 22... fxg6 {[%clk 1:23:53]} 23. Bxg6 {[%clk 1:06:35]} 23...
hxg6 {[%clk 1:24:21]} 24. Rxg6+ {[%clk 1:06:55]} 24... Kf7 {[%clk 1:24:44]} 25.
Rg7+ {[%clk 1:07:06]} 25... Ke6 {[%clk 1:25:09]} 26. R1g6+ {[%clk 1:07:16]}
26... Kf5 {[%clk 1:25:35]} 27. Rg5+ {[%clk 1:07:27]} 27... Kf4 {[%clk 1:25:43]}
28. h4 {[%clk 1:06:47]} 28... Bf5 {[%clk 1:26:07]} 29. h5 {[%clk 1:05:57]} 29...
Re2 {[%clk 1:26:09]} 30. Kd1 {[%clk 1:04:11]} 30... Rfe8 {[%clk 1:26:34]} 31.
Rg1 {[%clk 1:03:47]} 31... Bxc2+ {[%clk 1:26:18]} 32. Kc1 {[%clk 1:04:08]} 32...
Be4 {[%clk 1:26:35]} 33. Rf1+ {[%clk 1:02:56]} 33... Ke5 {[%clk 1:26:53]} 34.
Kd1 {[%clk 0:58:47]} 34... Rh2 {[%clk 1:26:59]} 35. Rg5+ {[%clk 0:55:54]} 35...
Kd6 {[%clk 1:27:18]} 36. Rf6+ {[%clk 0:52:14]} 36... Kc5 {[%clk 1:27:26]} 37.
Rf7 {[%clk 0:51:11]} 37... Bc2+ {[%clk 1:27:36]} 38. Kc1 {[%clk 0:51:00]} 38...
Re1+ {[%clk 1:27:24]} 39. Kb2 {[%clk 0:51:29]} 39... Ba4+ {[%clk 1:27:51]} 0-1

[Variant "Standard"]
[Site "Europe Echecs"]

[Event "Championnat du monde jeunes U10"]
[Date "2024.11.15"]
[White "Guirado Lara, Pablo"]
[Black "Yrysov, Timur"]
[WhiteElo "1832"]
[BlackElo "1604"]
[Round "1.39"]
[Result "0-1"]
[TimeControl "5400+30"]

1. d4 {[%clk 1:30:58]} 1... Nf6 {[%clk 1:30:50]} 2. Nf3 {[%clk 1:31:23]} 2... e6
{[%clk 1:31:04]} 3. e3 {[%clk 1:31:49]} 3... d5 {[%clk 1:31:13]} 4. Bd3 {[%clk
1:32:07]} 4... Be7 {[%clk 1:31:16]} 5. Nbd2 {[%clk 1:32:21]} 5... O-O {[%clk
1:31:31]} 6. O-O {[%clk 1:32:40]} 6... b6 {[%clk 1:31:34]} 7. c3 {[%clk
1:31:11]} 7... Bb7 {[%clk 1:31:49]} 8. Qe2 {[%clk 1:30:03]} 8... Nbd7 {[%clk
1:31:40]} 9. a4 {[%clk 1:26:25]} 9... Rc8 {[%clk 1:31:30]} 10. Ne5 {[%clk
1:18:29]} 10... Nxe5 {[%clk 1:26:30]} 11. dxe5 {[%clk 1:18:58]} 11... Nd7 {[%clk
1:26:32]} 12. f4 {[%clk 1:18:15]} 12... f6 {[%clk 1:26:01]} 13. Qh5 {[%clk
1:15:50]} 13... f5 {[%clk 1:25:41]} 14. g4 {[%clk 1:13:02]} 14... Qe8 {[%clk
1:18:21]} 15. Qxe8 {[%clk 1:08:12]} 15... Rcxe8 {[%clk 1:17:36]} 16. gxf5 {[%clk
1:08:31]} 16... exf5 {[%clk 1:17:50]} 17. a5 {[%clk 1:08:17]} 17... Bc5 {[%clk
1:12:47]} 18. Nf3 {[%clk 1:05:32]} 18... bxa5 {[%clk 1:10:36]} 19. Rxa5 {[%clk
1:03:37]} 19... Bb6 {[%clk 1:09:04]} 20. Ra2 {[%clk 1:02:48]} 20... Re6 {[%clk
1:02:56]} 21. Nh4 {[%clk 1:01:01]} 21... Nc5 {[%clk 1:02:18]} 22. Bc2 {[%clk
0:57:40]} 22... Ba6 {[%clk 0:58:30]} 23. b4 {[%clk 0:44:55]} 23... Bxf1 {[%clk
0:55:00]} 24. bxc5 {[%clk 0:45:15]} 24... Bc4 {[%clk 0:53:39]} 25. cxb6 {[%clk
0:35:53]} 25... Bxa2 {[%clk 0:52:06]} 26. bxc7 {[%clk 0:36:01]} 26... g6 {[%clk
0:50:22]} 27. Ba3 {[%clk 0:32:46]} 27... Rc6 {[%clk 0:47:33]} 28. Bxf8 {[%clk
0:25:44]} 28... Kxf8 {[%clk 0:45:22]} 29. Nf3 {[%clk 0:24:37]} 29... Rxc7 {[%clk
0:45:17]} 30. Nd4 {[%clk 0:24:05]} 30... Rxc3 {[%clk 0:45:06]} 31. Kf2 {[%clk
0:24:25]} 31... a5 {[%clk 0:43:24]} 32. Ke2 {[%clk 0:24:45]} 32... Bc4+ {[%clk
0:43:14]} 33. Kd2 {[%clk 0:25:05]} 33... Ra3 {[%clk 0:43:25]} 34. Ne6+ {[%clk
0:25:23]} 34... Ke7 {[%clk 0:43:40]} 35. Nc5 {[%clk 0:25:48]} 35... Ra1 {[%clk
0:42:25]} 36. Bd1 {[%clk 0:25:56]} 36... a4 {[%clk 0:41:05]} 37. Nxa4 {[%clk
0:23:20]} 37... Ra2+ {[%clk 0:41:08]} 38. Ke1 {[%clk 0:22:22]} 38... Rxh2 {[%clk
0:41:20]} 39. Bf3 {[%clk 0:22:25]} 39... h5 {[%clk 0:41:03]} 40. Nc3 {[%clk
0:22:39]} 40... h4 {[%clk 0:41:12]} 41. Nxd5+ {[%clk 0:22:32]} 41... Bxd5 {[%clk
0:41:28]} 42. Bxd5 {[%clk 0:23:00]} 42... h3 {[%clk 0:41:32]} 43. Kf1 {[%clk
0:23:07]} 43... Rd2 {[%clk 0:41:42]} 44. Bf3 {[%clk 0:23:16]} 44... h2 {[%clk
0:42:05]} 45. Bh1 {[%clk 0:23:39]} 45... Rb2 {[%clk 0:41:26]} 46. e4 {[%clk
0:23:51]} 46... fxe4 {[%clk 0:41:43]} 47. Bxe4 {[%clk 0:24:16]} 47... Rb1+
{[%clk 0:41:52]} 0-1

[Variant "Standard"]
[Site "Europe Echecs"]

[Event "Championnat du monde jeunes U10"]
[Date "2024.11.15"]
[White "Gim, Hajin"]
[Black "Perez Solanas, Hugo"]
[WhiteElo "1603"]
[BlackElo "1824"]
[Round "1.40"]
[Result "0-1"]
[TimeControl "5400+30"]

1. e4 {[%clk 1:30:58]} 1... c5 {[%clk 1:30:50]} 2. Nc3 {[%clk 1:31:24]} 2... g6
{[%clk 1:31:08]} 3. f4 {[%clk 1:31:49]} 3... Bg7 {[%clk 1:31:25]} 4. Nf3 {[%clk
1:32:12]} 4... Nc6 {[%clk 1:31:43]} 5. Bb5 {[%clk 1:32:35]} 5... Nd4 {[%clk
1:31:59]} 6. d3 {[%clk 1:32:58]} 6... Nxb5 {[%clk 1:31:55]} 7. Nxb5 {[%clk
1:33:22]} 7... d5 {[%clk 1:30:39]} 8. O-O {[%clk 1:33:29]} 8... a6 {[%clk
1:29:06]} 9. Nc3 {[%clk 1:33:52]} 9... d4 {[%clk 1:29:04]} 10. Ne2 {[%clk
1:34:03]} 10... Nf6 {[%clk 1:26:41]} 11. Qe1 {[%clk 1:34:07]} 11... O-O {[%clk
1:02:32]} 12. Qh4 {[%clk 1:34:25]} 12... e6 {[%clk 0:56:46]} 13. f5 {[%clk
1:32:26]} 13... exf5 {[%clk 0:54:48]} 14. Bg5 {[%clk 1:32:41]} 14... h6 {[%clk
0:54:07]} 15. Bxh6 {[%clk 1:32:52]} 15... Bxh6 {[%clk 0:52:43]} 16. Qxh6 {[%clk
1:32:52]} 16... Ng4 17. Qf4 {[%clk 1:27:21]} 17... Ne3 {[%clk 0:44:23]} 18. Qh6
{[%clk 1:18:02]} 18... Qf6 {[%clk 0:36:46]} 19. Ng5 {[%clk 1:18:00]} 19... Qh8
{[%clk 0:36:39]} 20. Qxh8+ {[%clk 1:18:10]} 20... Kxh8 {[%clk 0:36:59]} 21. Rf4
{[%clk 1:14:43]} 21... f6 {[%clk 0:35:57]} 22. Rh4+ {[%clk 1:14:08]} 22... Kg7
{[%clk 0:36:01]} 23. Nf3 {[%clk 1:09:32]} 23... g5 {[%clk 0:36:18]} 24. Rh3
{[%clk 1:07:20]} 24... fxe4 {[%clk 0:36:39]} 25. dxe4 {[%clk 1:07:19]} 25...
Bxh3 {[%clk 0:36:44]} 26. gxh3 {[%clk 1:07:44]} 26... Nxc2 {[%clk 0:36:07]} 27.
Rc1 {[%clk 1:08:08]} 27... d3 {[%clk 0:36:10]} 28. Nc3 {[%clk 1:08:01]} 28...
Rad8 {[%clk 0:35:45]} 29. Nd5 {[%clk 1:08:09]} 29... Rfe8 {[%clk 0:34:54]} 30.
Nd2 {[%clk 1:07:59]} 30... b5 {[%clk 0:31:52]} 31. Nc7 {[%clk 1:08:06]} 31...
Re5 {[%clk 0:31:56]} 32. Nd5 {[%clk 1:07:37]} 32... f5 {[%clk 0:31:36]} 33. Nc3
{[%clk 1:07:15]} 33... b4 {[%clk 0:31:45]} 34. Nd1 {[%clk 1:05:25]} 34... fxe4
{[%clk 0:32:07]} 35. Nc4 {[%clk 1:05:37]} 35... e3 {[%clk 0:28:59]} 36. Nxe5
{[%clk 1:05:34]} 36... e2 {[%clk 0:29:21]} 37. Nxd3 {[%clk 1:05:16]} 37... Rxd3
{[%clk 0:29:32]} 38. Nf2 {[%clk 1:05:25]} 38... Re3 {[%clk 0:29:32]} 39. Ng4
{[%clk 1:04:21]} 39... e1=Q+ {[%clk 0:29:51]} 40. Rxe1 {[%clk 1:04:42]} 40...
Rxe1+ {[%clk 0:30:11]} 41. Kf2 {[%clk 1:05:02]} 41... Ra1 {[%clk 0:30:28]} 0-1

[Variant "Standard"]
[Site "Europe Echecs"]

[Event "Championnat du monde jeunes U10"]
[Date "2024.11.15"]
[White "Mulay, Vivan Prakash"]
[Black "Novac, Daniil"]
[WhiteElo "1823"]
[BlackElo "1594"]
[Round "1.41"]
[Result "1-0"]
[TimeControl "5400+30"]

1. e4 {[%clk 1:30:59]} 1... Nf6 {[%clk 1:30:51]} 2. e5 {[%clk 1:31:14]} 2... Nd5
{[%clk 1:31:14]} 3. d4 {[%clk 1:31:31]} 3... d6 {[%clk 1:31:39]} 4. c4 {[%clk
1:30:27]} 4... Nb6 {[%clk 1:31:58]} 5. Nf3 {[%clk 1:26:28]} 5... Bg4 {[%clk
1:31:57]} 6. Be2 {[%clk 1:18:09]} 6... Nc6 {[%clk 1:30:23]} 7. exd6 {[%clk
1:17:27]} 7... cxd6 {[%clk 1:30:18]} 8. O-O {[%clk 1:16:31]} 8... Rc8 {[%clk
1:24:51]} 9. b3 {[%clk 1:11:15]} 9... g6 {[%clk 1:24:19]} 10. Bb2 {[%clk
1:10:15]} 10... Bg7 {[%clk 1:24:13]} 11. h3 {[%clk 1:07:17]} 11... Bxf3 {[%clk
1:22:13]} 12. Bxf3 {[%clk 1:06:40]} 12... O-O {[%clk 1:22:24]} 13. Qd3 {[%clk
0:59:29]} 13... e6 {[%clk 1:19:07]} 14. Nd2 {[%clk 0:57:31]} 14... d5 {[%clk
1:18:46]} 15. Rad1 {[%clk 0:49:40]} 15... Re8 {[%clk 1:11:04]} 16. a3 {[%clk
0:49:19]} 16... Re7 {[%clk 1:07:41]} 17. c5 {[%clk 0:46:53]} 17... Nd7 {[%clk
1:07:17]} 18. b4 {[%clk 0:44:29]} 18... a6 {[%clk 1:06:50]} 19. Nb3 {[%clk
0:42:25]} 19... Nf6 {[%clk 0:53:36]} 20. Rfe1 {[%clk 0:40:27]} 20... h5 {[%clk
0:49:23]} 21. Bc3 {[%clk 0:38:51]} 21... Nh7 {[%clk 0:47:58]} 22. h4 {[%clk
0:37:35]} 22... Re8 {[%clk 0:46:01]} 23. g3 {[%clk 0:37:33]} 23... Qf6 {[%clk
0:45:35]} 24. a4 {[%clk 0:34:50]} 24... Na7 {[%clk 0:45:01]} 25. Bg2 {[%clk
0:31:43]} 25... g5 {[%clk 0:42:51]} 26. hxg5 {[%clk 0:29:10]} 26... Nxg5 {[%clk
0:42:30]} 27. b5 {[%clk 0:27:35]} 27... axb5 {[%clk 0:41:20]} 28. axb5 {[%clk
0:26:34]} 28... Qg6 {[%clk 0:35:48]} 29. Qxg6 {[%clk 0:23:10]} 29... fxg6 {[%clk
0:36:08]} 30. b6 {[%clk 0:23:10]} 30... Nb5 {[%clk 0:35:26]} 31. Bb2 {[%clk
0:22:13]} 31... Ra8 {[%clk 0:34:39]} 32. Ra1 {[%clk 0:21:55]} 32... Kf7 {[%clk
0:33:21]} 33. f4 {[%clk 0:22:09]} 33... Nh7 {[%clk 0:33:19]} 34. Bf1 {[%clk
0:22:31]} 34... Nxd4 {[%clk 0:30:55]} 35. Bxd4 {[%clk 0:22:51]} 35... Rxa1
{[%clk 0:31:01]} 36. Rxa1 {[%clk 0:23:03]} 36... e5 {[%clk 0:31:15]} 37. Bxe5
{[%clk 0:23:18]} 37... Bxe5 {[%clk 0:31:40]} 38. fxe5 {[%clk 0:23:47]} 38...
Rxe5 {[%clk 0:32:02]} 39. Ra7 {[%clk 0:24:12]} 1-0

[Variant "Standard"]
[Site "Europe Echecs"]